Cogmind - Beta 16.1 *** ADVENTURER MODE // 2026.03.26 @ 15:37:58 Player: vinyl Result: Destroyed by Y-54 Guardian with Gatling Laser Performance ------------- Evolutions (3) 1500 Regions Visited (6) 1200 Robots Destroyed (80) 400 Value Destroyed (2856) 2856 Prototype IDs (0) 0 Alien Tech Used (0) 0 Bonus (119) 119 TOTAL SCORE: 6075 Bonus ------- Follower Combat Kills 119 Cogmind --------- Core Integrity 0/700 Matter 93/300 Energy 100/100 System Corruption 4% Temperature Cool (6) Movement Walking (120) Location -7/Factory Parts ------- > --- POWER (2) -------- (None) > --- PROPULSION (5) --- Improved Carbon-fiber Leg Improved Carbon-fiber Leg Improved Carbon-fiber Leg Improved Carbon-fiber Leg > --- UTILITY (3) ------ (None) > --- WEAPON (3) ------- Spread Laser Autogun Assault Cannon > --- INVENTORY (5) ---- Improved Carbon-fiber Leg Improved Titanium Leg Greatsword Peak State ------------ > --- POWER ------------ Light Deuterium Engine Light Nuclear Core > --- PROPULSION ------- Armored Medium Treads Armored Medium Treads Wheel Wheel Airjet > --- UTILITY ---------- Visual Processing Unit Improved Signal Interpreter Targeting Computer > --- WEAPON ----------- Heavy Ion Cannon Flak Gun Power Maul > --- INVENTORY -------- Airjet Particle Gun Autogun Flak Gun [Rating: 42] Favorites ----------- Power Ion Engine Engine Ion Engine Power Core Light Nuclear Core Propulsion Light Treads Treads Light Treads Leg Aluminum Leg Wheel Wheel Hover Unit Airjet Flight Unit VTOL Module Utility Targeting Computer Device Shock Absorption System Storage Small Storage Unit Processor Targeting Computer Protection Medium Armor Plating Weapon Flak Gun Energy Gun Small Laser Energy Cannon Ion Cannon Ballistic Gun Flak Gun Ballistic Cannon Flak Cannon Launcher Grenade Launcher Impact Weapon Power Maul Slashing Weapon Chainsword Build | -11 -10 -9 -8 -7 -7 -7 ------- Run | Yrd Mat Mat Mat Fac Was Fac Slots Evolved 6 | . . 2 2 2 . . Power 1 | . . . . 1 . . Propulsion 3 | . . 1 2 . . . Utility 1 | . . 1 . . . . Weapon 1 | . . . . 1 . . Parts Attached 74 | 6 1 11 26 17 4 9 Power 9 | 1 . 2 3 3 . . Engine 5 | 1 . 2 1 1 . . Core 4 | . . . 2 2 . . Reactor . | . . . . . . . Propulsion 31 | 2 . 5 11 7 1 5 Treads 15 | . . 2 11 2 . . Leg 7 | . . 3 . . . 4 Wheel 6 | 2 . . . 4 . . Hover 2 | . . . . 1 1 . Flight 1 | . . . . . . 1 Utility 10 | 1 1 1 4 2 1 . Device 1 | . . . . 1 . . Storage 1 | 1 . . . . . . Processor 4 | . 1 . 2 1 . . Hackware . | . . . . . . . Protection 4 | . . 1 2 . 1 . Artifact . | . . . . . . . Weapon 24 | 2 . 3 8 5 2 4 Energy Gun 7 | 2 . 1 1 1 1 1 Energy Cannon 2 | . . . 1 1 . . Ballistic Gun 9 | . . 2 2 2 1 2 Ballistic Cannon 2 | . . . 1 . . 1 Launcher 2 | . . . 2 . . . Special Weapon . | . . . . . . . Impact Weapon 1 | . . . . 1 . . Slashing Weapon 1 | . . . 1 . . . Piercing Weapon . | . . . . . . . Special Melee Weapon . | . . . . . . . Unidentified Prototypes . | . . . . . . . Corrupted Parts 1 | . . 1 . . . . System Corruption 3 | . . 3 . . . . Parts Lost 43 | . . 8 16 9 8 2 Power 8 | . . 2 3 3 . . Propulsion 20 | . . 4 6 6 3 1 Utility 5 | . . . 3 . 2 . Weapon 10 | . . 2 4 . 3 1 Highest Loss Streak 8 | . . 8 4 5 7 2 To Critical Strikes . | . . . . . . . Average Backups 3 | 2 4 3 4 4 2 1 Power . | . . . . . . . Propulsion 1 | 1 2 . 1 1 . . Utility . | . 1 2 . . . . Weapon 2 | . 1 . 2 2 1 . Tool/Special . | . . . . . . . Unused Backups 6 | . . . 3 . . 3 Power . | . . . . . . . Propulsion 2 | . . . . . . 2 Utility 1 | . . . 1 . . . Weapon 3 | . . . 2 . . 1 Tool/Special . | . . . . . . . Average Slot Usage (%) 73 | . 98 76 89 76 49 24 Engine 3 | . 14 10 4 . . . Core 2 | . . . 3 2 4 . Treads 20 | . . 2 38 18 8 . Leg 2 | . . 11 . . . 6 Wheel 3 | . 28 5 . 5 7 . Storage 1 | . 14 11 . . . . Processor 15 | . 12 11 15 22 13 . Protection 2 | . . 5 6 . . . Energy Gun 5 | . 28 13 5 3 . 5 Energy Cannon 3 | . . . 5 3 4 . Ballistic Gun 6 | . . 6 4 9 3 6 Ballistic Cannon 1 | . . . 2 . . 3 Impact Weapon 1 | . . . . 4 4 . Peak Build Rating 42 | 6 7 10 21 42 38 24 Average Rating 18 | 5 6 7 17 27 21 9 On Entrance 11 | . 6 7 10 20 38 . Avg Prop Armor Cover (%) 16 | . . 5 4 17 23 . Naked Turns 91 | . . . . . 63 28 Heaviest Build 25 | 14 14 17 22 25 21 11 Greatest Support 104 | 26 26 40 104 103 22 72 Greatest Overweight (x) 6 | 1 . 1 . 2 6 3 Average Overweight (x) . | . . . . . . 1 Largest Inventory Capacity 8 | 8 8 8 8 5 5 5 Average Capacity 5 | 7 8 8 5 5 5 5 Most Carried 7 | 3 6 7 6 5 4 4 Average Carried 3 | 2 4 3 4 4 2 1 Final Capacity 8 | 8 8 8 5 5 5 5 Final Carried 6 | 3 6 4 5 4 . 4 Class Distribution -------------------- 43% | Scavenger-Mutant 37% | Mutant 10% | Gunner 8% | Scavenger-Gunner Dominant Class ---------------- Mutant | -10/Materials Scavenger-Mutant | -9/Materials Scavenger-Mutant | -8/Materials Mutant | -7/Factory Mutant | -7/Waste Gunner | -7/Factory Resources | -11 -10 -9 -8 -7 -7 -7 ----------- Run | Yrd Mat Mat Mat Fac Was Fac Matter Collected 1600 | 218 52 135 687 357 . 151 Remotely . | . . . . . . . Salvage Created 2726 | . 42 503 1176 844 . 161 Parts 156 | . 3 39 66 41 . 7 Haulers Intercepted . | . . . . . . . Recyclers Shooed 2 | . . 2 . . . . Parts Field Recycled . | . . . . . . . Retrieved Matter . | . . . . . . . Parts Self-Destructed . | . . . . . . . Prevented . | . . . . . . . Parts Restored . | . . . . . . . Kills | -11 -10 -9 -8 -7 -7 -7 ------- Run | Yrd Mat Mat Mat Fac Was Fac Combat Hostiles Destroyed 69 | . . 13 30 20 . 6 Guns 45 | . . 13 14 13 . 5 Cannons 21 | . . . 13 7 . 1 AOE 3 | . . . 3 . . . Classes Destroyed 11 | . 1 3 3 4 . . Worker 1 | . . . . 1 . . Builder 1 | . . . . 1 . . Operator 1 | . . . 1 . . . Watcher 8 | . 2 . 3 3 . . Swarmer 22 | . . 3 6 9 . 4 Grunt 25 | . . 6 14 4 . 1 Brawler 2 | . . . 2 . . . Duelist 1 | . . . . 1 . . Sentry 15 | . . 4 7 3 . 1 Hunter 1 | . . . 1 . . . Programmer 3 | . . . . 3 . . Best Kill Streak 8 | . 1 6 8 6 . 2 Combat Bots Only 8 | . . 6 8 5 . 2 Max Kills in Single Turn 2 | . 1 1 2 2 . 1 Gunslinging 1 | . . . . 1 . . Exploded 2 | . . . 2 . . . Melee . | . . . . . . . Uniques/NPCs Destroyed . | . . . . . . . Combat | -11 -10 -9 -8 -7 -7 -7 -------- Run | Yrd Mat Mat Mat Fac Was Fac Hostile Shots Fired 759 | . . 159 274 213 10 103 Missed 230 | . . 46 83 67 . 34 Hits 529 | . . 113 191 146 10 69 Melee 10 | . . . . . 10 . Projectile 519 | . . 113 191 146 . 69 Critical Strikes 17 | . . 1 8 3 5 . Damage Taken 5708 | . . 1036 2276 1490 324 582 Core 1214 | . . 241 266 251 233 223 Absorbed by Shields . | . . . . . . . Ignored by Resistances 1645 | . . 319 611 446 85 184 Core Remaining (%) 72 | 100 100 39 51 . . . Volleys Fired 198 | . 2 39 87 45 4 21 Largest 3 | . 2 2 2 3 2 2 Hottest 130 | . 90 90 100 125 130 88 Shots Fired 373 | . 4 61 161 105 6 36 Gun 276 | . 4 61 99 82 2 28 Cannon 93 | . . . 58 23 4 8 Launcher 4 | . . . 4 . . . Special . | . . . . . . . Kinetic 182 | . . 14 81 59 1 27 Thermal 157 | . 2 38 57 46 5 9 Explosive 4 | . . . 4 . . . Electromagnetic 30 | . 2 9 19 . . . Robot Hit Streak 24 | . 3 22 24 22 4 12 Robot Miss Streak 4 | . . 1 3 4 1 4 Penetration Max . | . . . . . . . Secondary Targets 8 | . . 2 . 5 . 1 Max Gunslinging Chain 1 | . . 1 . 1 . 1 Shots Hit Robots 316 | . 3 53 136 83 6 35 Core Hits 248 | . 2 25 99 96 . 26 Critical Kills . | . . . . . . . Critical Parts Destroyed . | . . . . . . . Critical Strikes 4 | . . 2 . 1 . 1 Burn 3 | . . 2 . 1 . . Blast 1 | . . . . . . 1 Melee Attacks 2 | . . . . 1 1 . Impact 2 | . . . . 1 1 . Slashing . | . . . . . . . Piercing . | . . . . . . . Sneak Attacks 1 | . . . . 1 . . Combat Hostiles . | . . . . . . . Follow-up Attacks . | . . . . . . . Damage Inflicted 6811 | . 52 706 3188 2108 188 569 Guns 4080 | . 52 703 1392 1503 31 399 Cannons 1959 | . . . 1155 528 106 170 Explosions 641 | . . . 641 . . . Melee 128 | . . . . 77 51 . Ramming 3 | . . 3 . . . . Kinetic 3123 | . . 162 1330 1157 17 457 Thermal 2513 | . 12 430 965 874 120 112 Explosive 597 | . . . 597 . . . Electromagnetic 434 | . 40 111 283 . . . Impact 141 | . . . 13 77 51 . Slashing . | . . . . . . . Piercing . | . . . . . . . Highest Corruption 4 | . . 3 3 3 3 4 Average Corruption 2 | . . 3 3 2 3 3 Corruption Purged . | . . . . . . . Corruption Blocked . | . . . . . . . Effects 55 | . . 6 26 15 5 3 Message Errors 14 | . . 1 8 4 1 . Matter Fused 14 | . . 3 7 1 3 . Heat Flow Errors 6 | . . . 3 2 . 1 Energy Discharges 8 | . . 1 2 3 . 2 Parts Rejected 2 | . . . 1 1 . . Parts Fused 1 | . . . 1 . . . Data Loss (minor) 4 | . . 1 2 1 . . Misfires 3 | . . . 1 1 1 . Alerts 2 | . . . 1 1 . . Weapon Failures 1 | . . . . 1 . . Overload Shots . | . . . . . . . Overflow Damage 42 | . . . 5 37 . . Projectiles 5 | . . . 5 . . . Explosions . | . . . . . . . Melee 37 | . . . . 37 . . Knockbacks 12 | . . . 12 . . . Impact . | . . . . . . . Kinetic 11 | . . . 11 . . . Secondary 1 | . . . 1 . . . Self-Inflicted Damage 17 | . . . 17 . . . Shots 2 | . . . 2 . . . Rammed 2 | . . 1 . 1 . . Targets Rammed 2 | . . 1 . 1 . . Kicked . | . . . . . . . Crushed . | . . . . . . . Highest Temperature 229 | . 30 174 229 154 51 149 Average Temperature 40 | . 17 43 43 34 21 40 Received Heat Transfer 2121 | . . 654 1161 249 . 57 Siege Activations . | . . . . . . . Martial Activations . | . . . . . . . Shielding Activations . | . . . . . . . Robots Disrupted . | . . . . . . . Combat Hostiles . | . . . . . . . Robots Corrupted 1 | . . . . 1 . . Combat Hostiles . | . . . . . . . Parts Fried 2 | . . . . 2 . . Impact Corruptions 2 | . . . . 2 . . Robots Melted . | . . . . . . . Combat Hostiles . | . . . . . . . Parts Melted 3 | . . 1 1 1 . . Heat Transferred 4772 | . 37 1276 1686 1443 185 145 Parts Sabotaged . | . . . . . . . Parts Stolen . | . . . . . . . Parts Stripped . | . . . . . . . Power Chain Reactions 1 | . . . 1 . . . Alert | -11 -10 -9 -8 -7 -7 -7 ------- Run | Yrd Mat Mat Mat Fac Was Fac Maximum Alert Level 1 | . . . 1 . . . Low Security (%) 82 | 100 100 100 41 100 100 100 Level 1 17 | . . . 58 . . . Level 2 . | . . . . . . . Level 3 . | . . . . . . . Level 4 . | . . . . . . . Level 5 . | . . . . . . . High Security . | . . . . . . . Max Security . | . . . . . . . Peak Influence 342 | . 37 115 342 100 8 75 Initial 66 | . . 6 34 66 8 . Average 78 | . 11 74 202 25 . 15 Influence Increases 2078 | . 44 338 909 632 . 155 Destroy 0b10 Robot/C 1440 | . . 260 600 460 . 120 Destroy 0b10 Robot/NC 60 | . 10 . 20 30 . . Destroy Leader 356 | . 4 50 166 116 . 20 Allied During Kill 3 | . . . . 3 . . Successful Hack 20 | . . 12 . 8 . . Disable Machine 36 | . . . 36 . . . Destroy Structure 43 | . . 1 42 . . . Lose Combat Pursuer 120 | . 30 15 45 15 . 15 Influence Decreases 2048 | . 27 259 832 775 30 125 Entered New Map 202 | . . 11 62 107 22 . Time Decay 1456 | . 27 168 610 538 8 105 Lost Part 350 | . . 80 160 90 . 20 Lost Ally 40 | . . . . 40 . . Squads Dispatched 16 | . . . 6 6 . 4 Investigation 2 | . . . 2 . . . Extermination 5 | . . . . 4 . 1 Reinforcement 1 | . . . 1 . . . Assault . | . . . . . . . Garrison 8 | . . . 3 2 . 3 Intercept . | . . . . . . . Searches Triggered . | . . . . . . . Construction Impeded . | . . . . . . . Haulers Reinforced . | . . . . . . . Active Scanning Responses . | . . . . . . . Cargo Convoy Interrupts . | . . . . . . . Stealth | -11 -10 -9 -8 -7 -7 -7 --------- Run | Yrd Mat Mat Mat Fac Was Fac Distress Signals 5 | . 1 . 2 2 . . Communications Jammed . | . . . . . . . Distress Signals . | . . . . . . . Times Spotted 111 | . 3 16 44 29 6 13 Peak Tracking Total 8 | . 3 5 8 5 6 4 Tactical Retreats 7 | . 1 1 3 1 . 1 Traps | -11 -10 -9 -8 -7 -7 -7 ------- Run | Yrd Mat Mat Mat Fac Was Fac Traps Triggered 6 | . . . 1 2 . 3 Indirectly . | . . . . . . . Trap Hack Attempts . | . . . . . . . Triggered . | . . . . . . . Disarmed . | . . . . . . . Reprogrammed . | . . . . . . . Reused . | . . . . . . . Traps Extracted . | . . . . . . . Installed . | . . . . . . . Triggered . | . . . . . . . Machines | -11 -10 -9 -8 -7 -7 -7 ---------- Run | Yrd Mat Mat Mat Fac Was Fac Machines Disabled 4 | . . . 4 . . . Max in Single Turn 2 | . . . 2 . . . Machines Repaired . | . . . . . . . Machines Dismantled . | . . . . . . . Machines Sabotaged . | . . . . . . . Overloaded Fab Kills . | . . . . . . . Hacking | -11 -10 -9 -8 -7 -7 -7 --------- Run | Yrd Mat Mat Mat Fac Was Fac Machines Accessed 14 | . 1 2 3 5 . 3 Terminals 10 | . 1 2 3 2 . 2 Fabricators 4 | . . . . 3 . 1 Repair Stations . | . . . . . . . Recycling Units . | . . . . . . . Scanalyzers . | . . . . . . . Garrison Access . | . . . . . . . Total Hacks 18 | . 1 3 4 7 . 3 Successful 6 | . . 1 . 3 . 2 Failed 12 | . 1 2 4 4 . 1 Catastrophic 3 | . . 1 1 . . 1 Database Lockouts . | . . . . . . . Manual 9 | . 1 2 3 2 . 1 Terminals 13 | . 1 3 4 3 . 2 Fabricators 5 | . . . . 4 . 1 Repair Stations . | . . . . . . . Recycling Units . | . . . . . . . Scanalyzers . | . . . . . . . Garrison Access . | . . . . . . . Terminal Hacks 2 | . . 1 . . . 1 Open DSF 1 | . . . . . . 1 Terminal Index 1 | . . 1 . . . . Fabricator Hacks 4 | . . . . 3 . 1 Network Status 2 | . . . . 1 . 1 Build 2 | . . . . 2 . . Repair Station Hacks . | . . . . . . . Recycling Unit Hacks . | . . . . . . . Scanalyzer . | . . . . . . . Garrison Access Hacks . | . . . . . . . Unauthorized Hacks . | . . . . . . . Terminals . | . . . . . . . Fabricators . | . . . . . . . Repair Stations . | . . . . . . . Recycling Units . | . . . . . . . Scanalyzers . | . . . . . . . Garrison Access . | . . . . . . . Data Cores Recovered 1 | . . . 1 . . . Used . | . . . . . . . Hacking Detections 8 | . . 1 1 4 . 2 Full Trace Events 1 | . . . 1 . . . Feedback Events . | . . . . . . . Feedback Blocked . | . . . . . . . Robot Schematics Acquired . | . . . . . . . Robots Built 2 | . . . . 2 . . Authchips . | . . . . . . . Time 134 | . . . . 134 . . Total Robot Build Rating 8 | . . . . 8 . . Part Schematics Acquired . | . . . . . . . Parts Built 2 | . . . . 2 . . Authchips . | . . . . . . . Time 106 | . . . . 106 . . Total Part Build Rating 12 | . . . . 12 . . Part Studies Acquired . | . . . . . . . Parts Repaired . | . . . . . . . Time . | . . . . . . . Parts Recycled . | . . . . . . . Recycled Matter . | . . . . . . . Retrieved Matter . | . . . . . . . Retrieved Components . | . . . . . . . Parts Scanalyzed . | . . . . . . . Part Schematics Acquired . | . . . . . . . Parts Damaged . | . . . . . . . Bothacking | -11 -10 -9 -8 -7 -7 -7 ------------ Run | Yrd Mat Mat Mat Fac Was Fac Used RIF Installer . | . . . . . . . Robots Hacked . | . . . . . . . Non-combat . | . . . . . . . Combat . | . . . . . . . Robot Hacks Applied . | . . . . . . . Relay Couplers Released . | . . . . . . . Fabnet Peak Effective % . | . . . . . . . Robots Rewired . | . . . . . . . Allies Hacked 1 | . . . . 1 . . Hacks Repelled . | . . . . . . . Allies | -11 -10 -9 -8 -7 -7 -7 -------- Run | Yrd Mat Mat Mat Fac Was Fac Total Allies 2 | . . . . 2 . . Largest Group 2 | . . . . 2 . . Highest-Rated Group 64 | . . . . 64 . . Highest-Rated Ally 32 | . . . . 32 . . Total Orders . | . . . . . . . Ally Attacks 11 | . . . . 11 . . Total Damage 414 | . . . . 414 . . Kills 4 | . . . . 4 . . Allies Corrupted . | . . . . . . . Allies Melted . | . . . . . . . Intel | -11 -10 -9 -8 -7 -7 -7 ------- Run | Yrd Mat Mat Mat Fac Was Fac Active Infowar (turns) 2395 | . . . 835 1444 116 . Optics 2395 | . . . 835 1444 116 . Robot Analysis Total . | . . . . . . . Derelict Logs Recovered . | . . . . . . . Drone Launches . | . . . . . . . Drone Recoveries . | . . . . . . . Exploration | -11 -10 -9 -8 -7 -7 -7 ------------- Run | Yrd Mat Mat Mat Fac Was Fac Turns Passed 4093 | 299 91 355 1233 1444 213 458 Spaces Moved 2129 | 98 90 159 510 749 208 315 Core 404 | 7 . . . . 128 269 Treads 954 | . . 39 510 405 . . Legs 117 | . . 74 . . . 43 Wheels 618 | 91 90 46 . 315 76 . Hover 33 | . . . . 29 4 . Flight 3 | . . . . . . 3 Fastest Speed 35 | 50 90 90 152 80 50 35 Average Speed 125 | 88 90 136 158 130 74 111 Slowest Speed 350 | 100 90 190 160 170 350 200 Overloaded Moves . | . . . . . . . Propulsion Burnouts . | . . . . . . . Robots Hopped . | . . . . . . . Potential Cave-ins . | . . . . . . . Cave-ins Triggered 1 | . . . 1 . . . Exploration Rate (%) 32 | 7 27 22 53 27 85 9 Regions Visited 6 Branch Regions . Pre-discovered Areas . | . . . . . . . Known Exits Taken . | . . . . . . . Unknown Exits Taken 4 | 1 1 1 1 . . . Scrap Searched . | . . . . . . . Spaces Dug . | . . . . . . . Terrain Destroyed 47 | . . . 47 . . . Melee . | . . . . . . . Projectile 1 | . . . 1 . . . AOE 46 | . . . 46 . . . Terrain Rammed . | . . . . . . . Walls Destroyed . | . . . . . . . Machines Disabled . | . . . . . . . Actions | -11 -10 -9 -8 -7 -7 -7 --------- Run | Yrd Mat Mat Mat Fac Was Fac Total 3167 | 307 95 233 774 1117 258 383 Wait 715 | 200 . 18 126 295 41 35 Move 2124 | 97 89 158 509 749 207 315 Hop . | . . . . . . . Pick Up 24 | 4 3 4 8 2 . 3 Fast Attach 54 | 5 1 6 18 14 1 9 Attach 22 | 1 . 5 9 3 4 . Detach 6 | . . . 5 1 . . Swap 4 | . . . 4 . . . Drop 16 | . . 2 8 6 . . Fire 198 | . 2 39 87 45 4 21 Melee 2 | . . . . 1 1 . Ram . | . . . . . . . Kick . | . . . . . . . Crush 2 | . . 1 . 1 . . Escape Stasis . | . . . . . . . Rewire . | . . . . . . . Trap . | . . . . . . . Miscellaneous . | . . . . . . . Route ------- -11/Scrapyard -10/Materials -9/Materials -8/Materials -7/Factory -7/Waste -7/Factory History --------- Turn | Location | Event 29 | -11/Scrapyard | Discovered new exit (range 16) 300 | -11/Scrapyard | Entered Materials 301 | -10/Materials | Build established: Mutant 368 | -10/Materials | Discovered new exit (range 15) 391 | -10/Materials | Entered another Materials area 391 | -9/Materials | Evolved 2 slots: Propulsion x1, Utility x1 559 | -9/Materials | Core integrity fell below 50% 587 | -9/Materials | Lost 8 parts (2p4n2w) 735 | -9/Materials | Discovered new exit (range 5) 746 | -9/Materials | Entered another Materials area 746 | -8/Materials | Evolved 2 slots: Propulsion x2 789 | -8/Materials | Build established: Scavenger-Mutant 836 | -8/Materials | Crushed by falling debris 867 | -8/Materials | Lost 4 parts (1p1n1u1w) 898 | -8/Materials | Garrison activated, responded to threat 983 | -8/Materials | Lost 4 parts (1n1u2w) 1059 | -8/Materials | Destroyed 8 combat bots 1964 | -8/Materials | Discovered new exit (range 7) 1979 | -8/Materials | Entered Factory 1979 | -7/Factory | Evolved 2 slots: Power x1, Weapon x1 2297 | -7/Factory | Build established: Scavenger-Gunner 2388 | -7/Factory | Lost 3 parts (1p2n) 2769 | -7/Factory | Fabricated Y-54 Guardian (x2) 3102 | -7/Factory | Fabricated Arm. Medium Treads (x2) 3243 | -7/Factory | Garrison activated, responded to threat 3333 | -7/Factory | Lost 5 parts (2p3n) 3423 | -7/Factory | Sucked down chute 3423 | -7/Factory | Entered Waste 3429 | -7/Waste | Spotted C-40 Crusher 3476 | -7/Waste | Spotted C-40 Crusher 3506 | -7/Waste | Crushed by Compactor (1 part destroyed, 1 dropped) 3522 | -7/Waste | Spotted C-40 Crusher 3539 | -7/Waste | Crushed by Compactor (1 part destroyed, 2 dropped) 3542 | -7/Waste | Crushed by Compactor (1 part destroyed, 1 dropped) 3550 | -7/Waste | Crushed by Compactor (1 part destroyed, 1 dropped) 3554 | -7/Waste | Crushed by Compactor (1 part destroyed, 1 dropped) 3555 | -7/Waste | Crushed by Compactor (1 part destroyed, 1 dropped) 3556 | -7/Waste | Core integrity fell below 50% 3560 | -7/Waste | Crushed by Compactor (1 part destroyed, 1 dropped) 3572 | -7/Waste | Spotted C-40 Crusher 3582 | -7/Waste | Crushed by Compactor (1 part destroyed) 3587 | -7/Waste | Build established: Mutant 3593 | -7/Waste | Spotted C-40 Crusher 3613 | -7/Waste | Lost 7 parts (3n2u2w) 3613 | -7/Waste | Spotted C-40 Crusher 3628 | -7/Waste | Discovered new exit (range 15) 3636 | -7/Waste | Entered Factory 3713 | -7/Factory | Garrison activated, responded to threat 3731 | -7/Factory | Core integrity fell below 20% 4094 | -7/Factory | Destroyed by Y-54 Guardian with Gatling Laser Last Messages --------------- 03880_ K-01 Serf cleans the TF Node. 03923_ ALERT: Potential suspicious activity detected, Programmers report to Factory Zone 2U. 03968_ Triggered Shock Trap. 03968_ The floor emits a surge of raw power. 03970_ Triggered Shock Trap. 03970_ The floor emits a surge of raw power. 03970_ System corrupted (+1). 03972_ Triggered Shock Trap. 03972_ The floor emits a surge of raw power. 03975_ K-01 Serf collects debris. 03988_ Acquired Imp. Carbon-fiber Leg. 04003_ Acquired Imp. Titanium Leg. 04046_ ALERT: Cargo convoy en route, clear transfer corridor. 04079_ Y-54 Guardian Gatling Laser blasted off. 04080_ System corrupted: Energy discharge (-26). 04087_ Y-54 Guardian destroyed. 04090_ Acquired 42 matter. Map ----- +----------------------------------------------------+ | ????????????????????????????????????????????#" | | ????????????????????????????????????????????#""" | | ????????????????????????????????????????????#""" | | ????????????????????????????????????????????# | | ???????????????????###########+################### | | ?????????????????? | | ?????????????????? | | ????????????????? | | ????????????????? | | ????????????????? | | ??????????????????????# #######+#############+### | | ??????????????????????# ## #?????????# | | ??????????????????????# ## #?????????## | | ??????????????????????# ## #?????????# | | ??????????????????????# ## #?????????# | | ??????????????????????# ##= #?????????# | | ??????????????????????#= /= "" #?????????# | | ??????????????????????#%##% "" ""#?????????# | | ??????????????????????#[## """ ""#?????????# | | ??????????????????????# ## """ G#?????????# | | ??????????????????????# ## """ ""#?????????? | | ??????????????????????# ## ""#?????????? | | ??????????????????????# ## #?????????? | | ???????################ ###############??????????? | | ?????### %=########################## | | ???? %=Y@ k + | | ???? %############################# | | ???? #???????????????????????????# | | ???? #???????????????????????????# | | ????################ #???????????????????????????# | | ????# #???????# #???????????????#######?????# | | ????# """ #???????# #???????????????# ????# | | ????# """ #####???# #?????????#?????# ##### | | ????# """ ##T ##### ##### #?????# | | ????# + " +?????# | | ?#??# ! # ##### #?????# | | ## #####+### #???????????????# ##### | | #???????????????# ?????# | | ##### ################???????????????######??????? | | ????# #??????????????????????????????????????????? | | ????# #??????????????????????????????????????????? | | ????# #??????????????????????????????????????????? | | #####+##?????????????????????????????????????????? | | #?????????????????????????????????????????? | | """ #?????????????????????????????????????????? | | "Y" #???????????????????????????????????####### | | = " " #???????????????????????????????????# | | #???????????????????????????????????# | | """ #????????????????????#########+####?# | | """ #????????????????????? #??? | +----------------------------------------------------+ Best States ------------- Heat Dissipation 34 Energy Generation 23 Energy Capacity 250 Matter Stores 300 Matter Capacity 300 Sight Range 18 Terrain Scan Density 10 Armor Coverage 225 Resistance: KI 20 Resistance: TH 35 Resistance: EX 45 Resistance: EM 20 Resistance: I 20 Resistance: S 20 Resistance: P 20 Evasion (%) 55 Targeting Accuracy 10 Recoil Reduction 5 Offensive Hacking 10 Item Schematics ----------------- None Robot Schematics ------------------ None Fabricated ------------ Y-54 Guardian | x2 | -7/Factory | Preloaded Arm. Medium Treads | x2 | -7/Factory | Preloaded Repaired ---------- Nothing Studied --------- None Alien Tech Used ----------------- None Achievements -------------- None Challenges ------------ None Game ------ Seed ScrapSignalArachnoskeleton Manual? 0 Play Time 00:40:40 Cumulative 20.0 hours Start 2026.03.26 @ 14:43:19 End 2026.03.26 @ 15:37:58 Sessions 3 Manual Loads 0 Difficulty Adventurer Special Mode None Game No. 33 Rogue 0 Adventurer 33 Explorer 0 Win Type - Total 0 Types 0/0/0/0/0/0/0/0/0/0 Lore% 4 Gallery% 19 Achievement% 14 Wizard Run 0 Options --------- Layout 1 ASCII 0 Keyboard 0 Movement Mouse Keybinds 0 Fullscreen 1 Font 24/Smallcaps Map View 50x35 Zoom Use 0% Tactical HUD 1 Map Filters NONE Filters NONE Steam 1 RUN: 519fb21b-b693-4e5a-bf2e-cc854660797a